bitfinex-derivatives/quotes_ETHF0:USTF0_20230701
["timestamp","ask_amount","ask_price","bid_price","bid_amount"]
[1688251206477,1.71612434,1923.3,1923.2,1.02615753]
[1688251206675,1.71612434,1923.3,1923.2,8.91595753]
[1688251206978,0.3197391,1923.5,1923.2,8.91595753]
[1688251207176,0.0077991,1923.5,1923.4,7.8898]
[1688251207375,0.3197291,1923.5,1923.4,8.20174]
[1688251207570,0.3197291,1923.5,1923.4,8.78180643]
[1688251208176,0.3197291,1923.5,1923.4,8.78517223]
[1688251214783,0.3197291,1923.5,1923.4,14.02987223]
[1688251215389,0.60644545,1923.5,1923.4,0.89537223]
[1688251216282,0.60644545,1923.5,1923.4,4.09726658]
[1688251216283,0.3197291,1923.5,1923.4,4.09726658]
[1688251216480,0.3197291,1923.5,1923.4,8.75326658]
[1688251216679,0.3197291,1923.5,1923.4,5.54546658]
[1688251216880,0.60644545,1923.5,1923.4,5.54546658]
[1688251217479,0.3197291,1923.5,1923.4,5.54546658]
[1688251217674,0.3197291,1923.5,1923.4,8.75326658]
[1688251231393,0.60644545,1923.5,1923.4,0.88946658]
[1688251232196,0.60644545,1923.5,1923.4,5.57146658]
[1688251234896,0.3197291,1923.5,1923.4,5.57146658]
[1688251235288,0.3197291,1923.5,1923.4,8.77926658]
[1688251235495,0.0077991,1923.5,1923.4,8.77926658]
[1688251235793,0.3197291,1923.5,1923.4,8.77926658]
[1688251237002,0.0077991,1923.5,1923.4,8.77926658]
[1688251237303,0.3197291,1923.5,1923.4,8.77926658]
[1688251241114,0.3197291,1923.5,1923.4,8.43796086]
[1688251243514,0.3197291,1923.5,1923.4,8.85617989]
[1688251247017,0.41859352,1923.9,1923.4,13.59717989]
[1688251247217,0.77968,1924.0,1923.8,7.8498]
[1688251247526,0.77968,1924.0,1923.9,4.99386]
[1688251248119,0.77968,1924.0,1923.9,4.99688149]
[1688251257431,0.94753317,1924.0,1923.9,4.99688149]
[1688251265031,0.94753317,1924.0,1923.6,6.20056]
[1688251265032,1.23424952,1924.0,1923.6,6.20056]
[1688251265223,1.13629468,1924.0,1923.9,0.00327171]
[1688251265423,1.13629468,1924.0,1923.5,4.66379768]
[1688251265424,8.95619635,1924.0,1923.5,0.00779768]
[1688251265630,4.64,1923.6,1923.5,0.00779768]
[1688251265935,5.80611047,1923.6,1923.5,0.00779768]
[1688251266234,5.80611047,1923.6,1923.5,0.39152419]
[1688251266429,5.80611047,1923.6,1923.5,0.01218745]
[1688251266626,6.74203438,1923.6,1923.5,0.39152508]
[1688251267237,6.74203438,1923.6,1923.5,0.38713531]
[1688251269239,6.74203438,1923.6,1923.5,0.39152508]
[1688251278049,7.15297713,1923.6,1923.5,0.39152508]
[1688251278245,7.15297713,1923.6,1923.5,0.70345508]
[1688251279847,10.36077713,1923.6,1923.5,0.39152508]
[1688251280053,10.36077713,1923.6,1923.2,5.1512]
[1688251280246,4.668,1923.3,1923.2,5.1512]
[1688251280548,5.83416047,1923.3,1923.2,5.1512]
[1688251280949,6.77008438,1923.3,1923.2,5.1512]
[1688251281449,6.77008438,1923.3,1922.7,5.80253]
[1688251281450,4.682,1923.2,1922.7,5.80253]
[1688251281642,0.31201,1923.0,1922.9,5.1197]
[1688251281851,4.99401,1923.0,1922.9,5.1197]
[1688251283750,4.99401,1923.0,1922.7,0.78013]
[1688251283950,4.668,1922.8,1922.7,0.31206]
[1688251284145,4.98004,1922.8,1922.7,0.31206]
[1688251286560,4.98004,1922.8,1922.6,3.2078]
[1688251286770,0.85420047,1922.7,1922.5,6.10831308]
[1688251286965,1.16627047,1922.7,1922.6,0.31207]
[1688251287669,1.16627047,1922.7,1922.6,0.83661604]
[1688251288167,1.16627047,1922.7,1922.6,0.84169824]
[1688251289671,1.16627047,1922.7,1922.6,5.84209824]
[1688251290464,0.31206,1922.7,1922.6,13.69189824]
[1688251290973,0.59877635,1922.7,1922.6,13.73189824]
[1688251294474,0.31206,1922.7,1922.6,13.73189824]
[1688251295172,0.59877635,1922.7,1922.6,3.73742824]
[1688251295481,0.59877635,1922.7,1922.6,0.52962824]
[1688251295482,5.26677635,1922.7,1922.6,0.52962824]
[1688251297688,5.26677635,1922.7,1922.6,0.84169824]
[1688251297872,5.26677635,1922.7,1922.6,4.04949824]
[1688251298177,5.26677635,1922.7,1922.6,0.52962824]
[1688251299380,5.26677635,1922.7,1922.2,0.31214]
[1688251299381,4.682,1922.6,1922.2,0.31214]
[1688251299585,4.682,1922.3,1922.1,9.2185]
[1688251299774,0.59885635,1922.2,1922.1,9.2185]
[1688251300080,4.99414,1922.2,1922.1,9.2185]
[1688251300774,5.28085635,1922.2,1922.1,9.2185]
[1688251303275,4.99414,1922.2,1922.1,9.2185]
[1688251303481,0.31214,1922.2,1922.1,13.8745]
[1688251306073,5.60443,1922.4,1922.1,13.8745]
[1688251306074,0.93643,1922.4,1922.1,13.8745]
[1688251306271,0.87960412,1922.4,1922.3,3.51992]
[1688251306467,5.84832047,1922.4,1922.3,3.51992]
[1688251312185,5.83432047,1922.4,1922.3,3.51992]
[1688251312385,0.31212,1922.4,1922.3,3.86290808]
[1688251312683,0.78028,1922.5,1922.3,8.51890808]
[1688251313089,4.9801,1922.6,1922.3,8.51890808]
[1688251313290,4.9801,1922.6,1922.5,3.2078]
[1688251313486,4.9801,1922.6,1922.5,3.51989]
[1688251313688,4.9801,1922.6,1922.5,3.86288324]
[1688251314187,4.9801,1922.6,1922.5,8.94368324]
[1688251316683,4.9801,1922.6,1922.5,5.73588324]
[1688251317094,4.9801,1922.6,1922.5,8.94368324]
[1688251318587,4.668,1922.6,1922.5,8.94368324]
[1688251318788,5.09672976,1922.8,1922.5,13.62568324]
[1688251318980,0.31208,1922.6,1922.5,13.62568324]
[1688251319584,0.7802,1922.7,1922.5,13.62568324]
[1688251324694,1.06691635,1922.7,1922.5,13.62568324]
[1688251330191,1.06691635,1922.7,1922.5,13.59968324]
[1688251330394,0.7802,1922.7,1922.5,13.59968324]
[1688251340305,1.06691635,1922.7,1922.5,13.59968324]
[1688251341693,4.64,1922.6,1922.5,3.86288324]
[1688251341897,4.95208,1922.6,1922.5,3.86288324]
[1688251342299,5.51956412,1922.6,1922.5,3.86288324]
[1688251344611,5.51956412,1922.6,1922.5,3.77373845]
[1688251344811,4.64,1922.6,1922.5,3.77373845]
[1688251345512,4.95208,1922.6,1922.5,3.77373845]
[1688251346413,5.23879635,1922.6,1922.5,3.77373845]
[1688251350916,4.95208,1922.6,1922.5,3.77373845]
[1688251351304,5.23879635,1922.6,1922.5,3.77373845]
[1688251352718,6.17482654,1922.6,1922.5,3.77373845]
[1688251353318,6.17482648,1922.6,1922.5,3.77373845]
[1688251361724,6.17483525,1922.6,1922.5,3.77373845]
[1688251363515,5.86275525,1922.6,1922.5,3.77373845]
[1688251364111,4.64,1922.6,1922.5,3.77373845]
[1688251366020,4.95207,1922.6,1922.5,3.77373845]
[1688251367319,4.95207,1922.6,1922.5,4.20028434]
[1688251368738,4.64,1922.6,1922.5,4.20028434]
[1688251369031,4.95207,1922.6,1922.5,4.20028434]
[1688251372033,4.98007,1922.6,1922.5,4.20028434]
[1688251373337,5.26678635,1922.6,1922.5,4.20028434]
[1688251383839,5.26678635,1922.6,1922.5,0.68039434]
[1688251384042,5.26678635,1922.6,1922.5,0.25384845]
[1688251384545,5.26678635,1922.6,1922.4,0.3121]
[1688251384847,5.63418635,1922.6,1922.5,0.2540233]
[1688251385044,10.31618635,1922.6,1922.5,0.2540233]
[1688251385244,11.25223728,1922.6,1922.5,0.2540233]
[1688251385642,11.8197214,1922.6,1922.5,0.2540233]
[1688251388151,11.8197214,1922.6,1922.5,3.4618233]
[1688251390650,16.5017214,1922.6,1922.5,3.4618233]
[1688251391140,16.5017214,1922.6,1922.5,0.2540233]
[1688251395353,16.5017214,1922.6,1922.5,0.5661133]
[1688251396850,16.5017214,1922.6,1922.5,3.7739133]
[1688251398749,15.93423728,1922.6,1922.5,3.7739133]
[1688251399653,15.93423728,1922.6,1922.5,0.2540233]
[1688251399860,0.56748412,1922.5,1922.3,5.1851]
[1688251400158,5.23882635,1922.4,1922.1,3.2078]
[1688251400349,4.99414,1922.2,1922.1,3.2078]
[1688251400547,5.84834047,1922.2,1922.1,3.2078]
[1688251401455,5.84834047,1922.2,1922.1,3.51996]
[1688251401751,5.84834047,1922.2,1922.0,0.41216]
[1688251401955,4.99416,1922.1,1922.0,0.41216]
[1688251402163,4.99416,1922.1,1922.0,3.61996]
[1688251403554,4.99416,1922.1,1922.0,8.51796]
[1688251404649,4.99416,1922.1,1922.0,3.3078]
[1688251404848,4.99416,1922.1,1922.0,3.61997]
[1688251406258,4.682,1922.1,1922.0,3.61997]
[1688251406458,4.99416,1922.1,1922.0,3.61997]
[1688251407353,4.99416,1922.1,1922.0,4.01616523]
[1688251408463,4.99416,1922.1,1922.0,3.70399523]
[1688251409163,4.99416,1922.1,1922.0,0.49619523]
[1688251412565,4.99416,1922.1,1922.0,0.80836523]
[1688251413361,4.99416,1922.1,1922.0,0.49619523]
[1688251414969,4.99416,1922.1,1922.0,0.80836523]
[1688251416862,5.41572797,1922.1,1922.0,0.80836523]
[1688251417568,5.41572797,1922.1,1922.0,4.01616523]
[1688251420762,5.41572797,1922.1,1922.0,0.80836523]
[1688251421461,5.41572797,1922.1,1922.0,4.01616523]
[1688251421867,5.41572797,1922.1,1922.0,0.80836523]
[1688251425169,5.41572797,1922.1,1922.0,4.01616523]
[1688251427763,4.99416,1922.1,1922.0,4.01616523]
[1688251429065,4.99416,1922.1,1922.0,4.12016523]
[1688251430566,5.28087635,1922.1,1922.0,4.01616523]
[1688251431064,4.99416,1922.1,1922.0,4.01616523]
[1688251434677,5.28087635,1922.1,1922.0,4.01616523]
[1688251436765,4.99416,1922.1,1922.0,4.01616523]
[1688251439166,4.99416,1922.1,1922.0,4.12016523]
[1688251440268,5.28087635,1922.1,1922.0,4.01616523]
[1688251442275,5.28087635,1922.1,1922.0,3.70399523]
[1688251442473,5.28087635,1922.1,1922.0,4.01616523]
[1688251443174,4.99416,1922.1,1922.0,4.01616523]
[1688251443571,5.28087635,1922.1,1922.0,4.01616523]
[1688251445670,5.92970083,1922.1,1922.0,4.01616523]
[1688251445871,4.99416,1922.1,1922.0,4.01616523]
[1688251447281,4.95216,1922.1,1922.0,4.01616523]
[1688251447573,4.64,1922.1,1922.0,4.01616523]
[1688251447774,4.64,1922.1,1922.0,4.12016523]
[1688251447987,5.44836,1922.3,1922.0,8.58263478]
[1688251448176,5.44836,1922.3,1922.2,3.2078]
[1688251448372,5.44836,1922.3,1922.2,3.51994]
[1688251451285,0.93556087,1922.5,1922.2,8.20194]
[1688251451578,4.64,1922.7,1922.5,0.31209]
[1688251451772,4.64,1922.7,1922.6,8.77238]
[1688251452168,4.77608977,1922.7,1922.6,8.77238]
[1688251452379,5.08814977,1922.7,1922.6,8.77238]
[1688251455684,5.37486612,1922.7,1922.6,8.77238]
[1688251457074,5.08814977,1922.7,1922.6,8.77238]
[1688251462182,5.37486612,1922.7,1922.6,5.2525]
[1688251462386,5.37486612,1922.7,1922.6,5.56458]
[1688251463383,5.08814977,1922.7,1922.6,5.56458]
[1688251464992,5.37486612,1922.7,1922.6,0.31208]
[1688251478902,5.80020031,1922.7,1922.6,0.31208]
[1688251484410,5.80020031,1922.7,1922.6,0.72517495]
[1688251484618,5.80020031,1922.7,1922.6,0.31208]
[1688251486504,6.73576118,1922.7,1922.6,0.31208]
[1688251488216,6.44904483,1922.7,1922.6,0.31208]
[1688251488617,6.73576118,1922.7,1922.6,0.31208]
[1688251494911,6.44904483,1922.7,1922.6,0.31208]
[1688251495826,6.02371064,1922.7,1922.6,3.51988]
[1688251496011,4.77608977,1922.7,1922.6,3.51988]
[1688251496208,5.08814977,1922.7,1922.6,3.51988]
[1688251506129,5.37486612,1922.7,1922.6,3.51988]
[1688251506726,5.08814977,1922.7,1922.6,3.51988]
[1688251513535,5.37486612,1922.7,1922.6,3.51988]
[1688251514530,5.08814977,1922.7,1922.6,3.51988]
[1688251526542,5.08814977,1922.7,1922.6,0.31208]
[1688251526543,5.37486612,1922.7,1922.6,0.31208]
[1688251527340,6.31042699,1922.7,1922.5,0.31209]
[1688251527540,5.51956412,1922.6,1922.5,0.31209]
[1688251527743,5.6555015,1922.6,1922.5,0.31209]
[1688251527940,6.59106237,1922.6,1922.5,0.31209]
[1688251543651,6.45512499,1922.6,1922.5,0.31209]
[1688251543852,6.45512499,1922.6,1922.5,0.37432202]
[1688251544953,6.45512499,1922.6,1922.5,0.06223202]
[1688251545162,19.34492499,1922.6,1922.5,0.06223202]
[1688251545349,19.34492499,1922.6,1922.5,0.21053504]
[1688251545553,19.34492499,1922.6,1922.0,0.41217]
[1688251545853,4.682,1922.1,1922.0,0.1]
[1688251546061,5.28087635,1922.1,1922.0,0.41217]
[1688251546754,5.84836047,1922.1,1922.0,0.41217]
[1688251547852,5.84836047,1922.1,1922.0,0.81932605]
[1688251553965,5.84836047,1922.1,1922.0,0.50715605]
[1688251554364,5.84836047,1922.1,1922.0,0.81932605]
[1688251556365,5.84836047,1922.1,1922.0,0.41217]
[1688251557263,5.84836047,1922.1,1922.0,0.6299099]
[1688251564373,5.84836047,1922.1,1922.0,0.3177399]
[1688251567172,9.9913,1922.1,1922.0,0.3177399]
[1688251567373,9.9913,1922.1,1922.0,0.39350877]
[1688251569673,0.31219,1921.9,1921.7,5.0402]
[1688251569866,5.80641047,1921.8,1921.7,5.0402]
[1688251570266,5.80641047,1921.8,1921.7,5.35242]
[1688251570673,5.80641047,1921.8,1921.7,5.73618321]
[1688251573173,5.80641047,1921.8,1921.7,5.42396321]
[1688251575179,5.80641047,1921.8,1921.7,0.38376321]
[1688251575383,4.95221,1921.8,1921.7,0.69598321]
[1688251575578,4.95221,1921.8,1921.7,5.70358321]
[1688251575880,5.23892635,1921.8,1921.7,5.70358321]
[1688251576181,4.95221,1921.8,1921.7,5.70358321]
[1688251576576,5.23892635,1921.8,1921.7,5.39136321]
[1688251580093,5.23892635,1921.8,1921.7,5.70358321]
[1688251582494,5.23892635,1921.8,1921.7,5.39136321]
[1688251583491,5.23892635,1921.8,1921.7,5.70358321]
[1688251583691,4.95221,1921.8,1921.7,5.70358321]
[1688251583993,5.23892635,1921.8,1921.7,5.70358321]
[1688251586896,5.23892635,1921.8,1921.7,5.39136321]
[1688251587394,5.23892635,1921.8,1921.7,0.38376321]
[1688251587595,5.23892635,1921.8,1921.6,3.2078]
[1688251587798,5.20748412,1921.7,1921.6,3.2078]
[1688251587991,5.51970412,1921.7,1921.6,3.2078]
[1688251588499,5.51970412,1921.7,1921.6,3.21635817]
[1688251589107,5.51970412,1921.7,1921.6,3.52859817]
[1688251589402,5.51970412,1921.7,1921.6,3.52004]
[1688251592695,4.95222,1921.7,1921.6,3.52004]
[1688251596302,5.23893635,1921.7,1921.6,3.52004]
[1688251596704,4.95222,1921.7,1921.6,3.52004]
[1688251596909,5.23893635,1921.7,1921.6,3.52004]
[1688251598310,4.95222,1921.7,1921.6,3.52004]
[1688251600506,5.23893635,1921.7,1921.6,3.52004]
[1688251601209,4.95222,1921.7,1921.6,3.52004]
[1688251602403,4.95222,1921.7,1921.6,3.91290659]
[1688251612811,0.31219,1921.9,1921.6,8.59490659]
[1688251613109,0.78828518,1922.0,1921.9,0.31219]
[1688251613316,0.78828518,1922.0,1921.9,4.99419]
[1688251613518,0.78828518,1922.0,1921.9,5.28520916]
[1688251613705,0.00780518,1922.0,1921.9,5.28520916]
[1688251613911,0.00780518,1922.0,1921.9,10.45020916]
[1688251614107,0.00780518,1922.0,1921.9,10.35202909]
[1688251627529,0.00780518,1922.0,1921.9,10.77868322]
[1688251634634,0.29452153,1922.0,1921.9,10.77868322]
[1688251634928,5.28869153,1922.0,1921.9,0.93168322]
[1688251656246,5.28869153,1922.0,1921.9,4.13948322]
[1688251665055,9.97069153,1922.0,1921.9,0.19283909]
[1688251665250,10.90581174,1922.0,1921.9,0.19283909]
[1688251665457,10.90581174,1922.0,1921.7,9.29508]
[1688251665647,4.95221,1921.8,1921.7,9.29508]
[1688251665957,5.23892635,1921.8,1921.7,9.29508]
[1688251667155,5.23892635,1921.8,1921.7,9.70886075]
[1688251667664,5.23892635,1921.8,1921.7,9.29508]
[1688251667960,5.23892635,1921.8,1921.7,8.3585]
[1688251668152,5.23892635,1921.8,1921.7,8.67072]
[1688251668664,4.95221,1921.8,1921.7,8.67072]
[1688251668863,0.31221,1921.8,1921.7,8.67072]
[1688251677469,0.31221,1921.8,1921.7,8.94442435]
[1688251688887,5.57512021,1921.9,1921.7,8.94442435]
[1688251689078,0.93512021,1921.9,1921.7,13.58642435]
[1688251689280,6.42091539,1922.0,1921.7,13.58642435]
[1688251689576,6.42091539,1922.0,1921.9,3.51999]
[1688251689577,6.10872539,1922.0,1921.9,3.51999]
[1688251690383,0.94292539,1922.0,1921.9,8.34149]
[1688251690585,0.00780518,1922.0,1921.9,8.34149]
[1688251692083,0.00780518,1922.0,1921.9,13.02349]
[1688251697285,0.31997518,1922.0,1921.9,13.02349]
[1688251699182,0.60669153,1922.0,1921.9,13.02349]
[1688251701992,0.31997518,1922.0,1921.9,13.02349]
[1688251705297,0.31997518,1922.0,1921.9,13.43387583]
[1688251712199,0.31997518,1922.0,1921.9,8.75187583]
[1688251722211,4.95997518,1922.0,1921.9,8.75187583]
[1688251728217,5.24669153,1922.0,1921.9,8.75187583]
[1688251731418,4.95997518,1922.0,1921.9,8.75187583]
[1688251738515,5.24669153,1922.0,1921.9,8.75187583]
[1688251739520,4.95997518,1922.0,1921.9,8.75187583]
[1688251741218,5.24669153,1922.0,1921.9,8.75187583]
[1688251741632,4.95997518,1922.0,1921.9,8.75187583]
[1688251741823,5.24669153,1922.0,1921.9,8.75187583]
[1688251744532,4.95997518,1922.0,1921.9,8.75187583]
[1688251748431,5.24669153,1922.0,1921.9,8.75187583]
[1688251750432,4.95997518,1922.0,1921.9,8.75187583]
[1688251752143,5.24669153,1922.0,1921.9,8.75187583]
[1688251752835,4.95997518,1922.0,1921.9,8.75187583]
[1688251772047,0.31997518,1922.0,1921.9,13.40787583]
[1688251781946,0.60669153,1922.0,1921.9,13.40787583]
[1688251782153,0.60669153,1922.0,1921.9,8.75187583]
[1688251783547,0.31997518,1922.0,1921.9,8.75187583]
[1688251792054,4.95997518,1922.0,1921.9,8.75187583]
[1688251802162,0.31997518,1922.0,1921.9,8.75187583]
[1688251803863,0.60669153,1922.0,1921.9,8.75187583]
[1688251804368,0.31997518,1922.0,1921.9,8.75187583]
[1688251805254,0.00780518,1922.0,1921.9,8.75187583]
[1688251805459,0.00780518,1922.0,1921.9,13.39387583]
[1688251805660,0.31997518,1922.0,1921.9,13.39387583]
[1688251806060,0.00780518,1922.0,1921.9,13.90879384]
[1688251807660,0.00780518,1922.0,1921.9,18.92349384]
[1688251841198,0.00780518,1922.0,1921.9,18.40857583]
[1688251852800,0.60669153,1922.0,1921.9,3.93037583]
[1688251853095,1.54181174,1922.0,1921.9,3.93037583]
[1688251862211,6.18181174,1922.0,1921.9,3.93037583]
[1688251870518,5.89509539,1922.0,1921.9,3.93037583]
[1688251872126,1.25509539,1922.0,1921.9,3.93037583]
[1688251872824,1.54181174,1922.0,1921.9,3.93037583]
[1688251873012,0.00780518,1922.0,1921.9,8.57237583]
[1688251873320,0.42113613,1922.4,1922.0,0.104]
[1688251873512,0.73325613,1922.4,1922.3,8.20192]
[1688251873710,0.31212,1922.4,1922.3,8.20192]
[1688251875024,0.31212,1922.4,1922.3,13.09122]
[1688251881427,0.63105308,1922.4,1922.3,13.09122]
[1688251884129,0.31893308,1922.4,1922.3,13.09122]
[1688251884319,0.93562758,1922.8,1922.3,13.09122]
[1688251884523,6.87486758,1922.9,1922.7,7.8898]
[1688251884825,6.87486758,1922.9,1922.8,5.19344]
[1688251889135,5.93924,1922.9,1922.8,5.19344]
[1688251890337,6.22595635,1922.9,1922.8,5.19344]
[1688251890643,5.93924,1922.9,1922.8,5.19344]
[1688251892133,6.34216457,1922.9,1922.8,5.19344]
[1688251898146,5.40602457,1922.9,1922.8,5.19344]
[1688251898341,0.40292457,1922.9,1922.8,5.19344]
[1688251898537,0.40292457,1922.9,1922.8,9.83544]
[1688251900740,0.71495457,1922.9,1922.8,9.83544]
[1688251901231,0.71495457,1922.9,1922.8,10.24575533]
[1688251903939,1.00167092,1922.9,1922.8,5.36435533]
[1688251909044,0.71495457,1922.9,1922.8,5.36435533]
[1688251909250,1.00167092,1922.9,1922.8,5.36435533]
[1688251912249,1.00167092,1922.9,1922.8,0.72235533]
[1688251913952,0.71495457,1922.9,1922.8,0.72235533]
[1688251914153,1.00167092,1922.9,1922.8,0.72235533]
[1688251915244,1.9372098,1922.9,1922.8,0.72235533]
[1688251922159,6.5772098,1922.9,1922.8,0.72235533]
[1688251922951,6.5772098,1922.9,1922.8,5.90675533]
[1688251923156,6.29049345,1922.9,1922.8,5.90675533]
[1688251924362,6.5772098,1922.9,1922.8,5.90675533]
[1688251926464,6.29049345,1922.9,1922.8,5.90675533]
[1688251927761,6.5772098,1922.9,1922.8,5.90675533]
[1688251931264,6.29049345,1922.9,1922.8,5.90675533]
[1688251934270,6.5772098,1922.9,1922.8,5.90675533]
[1688251935373,6.29049345,1922.9,1922.8,5.90675533]
[1688251937271,0.00780092,1923.0,1922.8,10.56275533]
[1688251937470,0.00780092,1923.0,1922.9,8.17583]
[1688251937768,0.31981092,1923.0,1922.9,8.17583]
[1688251945081,0.63784621,1923.0,1922.9,8.17583]
[1688251945476,0.32583621,1923.0,1922.9,8.17583]
[1688251946078,0.63784621,1923.0,1922.9,8.17583]
[1688251950384,0.32583621,1923.0,1922.9,8.17583]
[1688251950586,0.93556923,1923.2,1923.1,4.637]
[1688251950587,0.31199,1923.2,1923.1,4.637]
[1688251950773,0.31199,1923.2,1923.1,12.7988]
[1688251950975,0.31199,1923.2,1923.1,8.1618]
[1688251956985,0.31199,1923.2,1922.9,8.8258]
[1688251956986,5.28070635,1923.2,1922.9,8.8258]
[1688251957184,6.21627558,1923.2,1922.9,8.8258]
[1688251957389,0.56748412,1923.1,1922.9,8.8258]
[1688251957583,0.31201,1923.0,1922.9,8.8258]
[1688251957786,0.59872635,1923.0,1922.9,8.8258]
[1688251958204,1.03827773,1923.0,1922.9,8.8258]
[1688251960897,1.03827773,1923.0,1922.9,7.46812464]
[1688251961096,1.03827773,1923.0,1922.9,8.24814464]
[1688251962205,0.75156138,1923.0,1922.9,8.24814464]
[1688251966205,0.75156138,1923.0,1922.9,13.18594464]
[1688251971800,0.75156138,1923.0,1922.9,13.60762]
[1688251977314,0.43955138,1923.0,1922.9,13.60762]
[1688251977506,0.43955138,1923.0,1922.9,13.68562]
[1688251977709,0.75156138,1923.0,1922.9,13.68562]
[1688251980906,0.75156138,1923.0,1922.9,13.58162]
[1688251981215,1.03827773,1923.0,1922.9,13.58162]
[1688251981703,0.75156138,1923.0,1922.9,13.58162]
[1688252003324,1.03827773,1923.0,1922.9,13.58162]
[1688252007934,0.75156138,1923.0,1922.9,13.58162]
[1688252009129,1.03827773,1923.0,1922.9,13.58162]
[1688252012130,0.75156138,1923.0,1922.9,13.58162]
[1688252040254,1.03827773,1923.0,1922.9,13.58162]
[1688252040957,0.75156138,1923.0,1922.9,13.58162]
[1688252043757,1.03827773,1923.0,1922.9,8.1456]
[1688252043959,1.03827773,1923.0,1922.8,5.05231533]
[1688252044254,8.41528412,1922.9,1922.4,8.64397]
[1688252044468,4.64,1922.7,1922.4,13.48117]
[1688252044647,0.59879635,1922.6,1922.4,13.48117]
[1688252044852,1.16628047,1922.6,1922.4,13.48117]
[1688252047156,0.31208,1922.6,1922.5,4.642]
[1688252047357,0.31208,1922.6,1922.5,4.95409]
[1688252047548,0.41610939,1922.6,1922.5,4.95409]
[1688252052560,0.70282574,1922.6,1922.5,4.95409]
[1688252055459,0.10402939,1922.6,1922.5,4.95409]
[1688252055656,0.10402939,1922.6,1922.5,9.74009]
[1688252055861,0.31204,1922.8,1922.5,9.74009]
[1688252056058,0.31204,1922.8,1922.7,8.20186]
[1688252056252,0.41441802,1922.8,1922.7,8.20186]
[1688252061662,0.70113437,1922.8,1922.7,8.20186]
[1688252066372,0.70113437,1922.8,1922.7,7.8898]
[1688252066671,0.70113437,1922.8,1922.7,3.2078]
[1688252067957,0.70113437,1922.8,1922.7,3.63288582]
[1688252068769,0.70113437,1922.8,1922.7,3.94494582]
[1688252072277,5.36913437,1922.8,1922.7,3.94494582]
[1688252072774,6.30435572,1922.8,1922.7,3.94494582]
[1688252101688,6.01763937,1922.8,1922.7,3.94494582]
[1688252103897,6.30435572,1922.8,1922.7,3.94494582]
[1688252118200,6.30435572,1922.8,1922.7,3.63288582]
[1688252121712,6.30435572,1922.8,1922.7,3.94494582]
[1688252122206,6.27635572,1922.8,1922.7,3.94494582]
[1688252130411,6.27635572,1922.8,1922.7,0.73714582]
[1688252130608,6.27635572,1922.8,1922.7,3.94494582]
[1688252134414,5.98963937,1922.8,1922.7,3.94494582]
[1688252135417,6.27635572,1922.8,1922.7,3.94494582]
[1688252148230,5.98963937,1922.8,1922.7,3.94494582]
[1688252148432,1.34963937,1922.8,1922.7,3.94494582]
[1688252148624,0.41441802,1922.8,1922.7,3.94494582]
[1688252152035,0.41441802,1922.8,1922.7,8.60094582]
[1688252193982,0.41441802,1922.8,1922.7,5.39314582]
[1688252194575,0.41441802,1922.8,1922.7,8.60094582]
[1688252200483,0.41441802,1922.8,1922.7,8.62694582]
[1688252222304,0.70113437,1922.8,1922.7,8.62694582]
[1688252223617,0.41441802,1922.8,1922.7,8.62694582]
[1688252236412,0.41598907,1922.8,1922.7,8.62694582]
[1688252259934,1.27018954,1922.8,1922.7,3.63288582]
[1688252260133,5.95218954,1922.8,1922.4,3.2078]
[1688252260337,4.99409,1922.5,1922.4,3.2078]
[1688252260530,5.84829047,1922.5,1922.4,3.2078]
[1688252261336,5.84829047,1922.5,1922.2,0.43344093]
[1688252261537,4.682,1922.3,1922.2,0.43344093]
[1688252261731,5.84832047,1922.3,1922.2,0.43344093]
[1688252262227,1.16632047,1922.3,1922.2,0.43344093]
[1688252262433,1.16632047,1922.3,1922.2,3.64124093]
[1688252262632,1.16632047,1922.3,1922.2,0.43344093]
[1688252263332,1.16632047,1922.3,1922.2,3.64124093]
[1688252263534,1.16632047,1922.3,1922.2,3.95338093]
[1688252271341,1.16632047,1922.3,1922.2,4.17818131]
[1688252272634,0.59883635,1922.3,1922.2,4.17818131]
[1688252282348,0.31212,1922.3,1922.2,4.17818131]
[1688252283450,0.59883635,1922.3,1922.2,4.17818131]
[1688252288754,0.78032,1922.4,1922.2,8.82018131]
[1688252288954,0.07044364,1922.3,1922.2,3.95338093]
[1688252289151,0.38256364,1922.3,1922.2,8.63538093]
[1688252294844,0.78031,1922.5,1922.2,8.63538093]
[1688252294845,0.31211,1922.5,1922.2,8.63538093]
[1688252295050,0.31211,1922.5,1922.4,8.17591]
[1688252298351,0.31211,1922.5,1922.4,13.05351]
[1688252299569,0.78023,1922.6,1922.4,13.05351]
[1688252299756,0.78023,1922.6,1922.5,4.656]
[1688252300059,0.78023,1922.6,1922.5,4.96809]
[1688252310470,0.78023,1922.6,1922.5,8.17589]
[1688252312577,0.31207,1922.7,1922.5,8.17589]
[1688252312874,5.99484,1922.8,1922.6,4.96807]
[1688252313071,0.31207,1922.7,1922.6,5.15287]
[1688252313272,0.31207,1922.7,1922.6,13.01667]
[1688252316476,0.62553356,1922.7,1922.6,13.01667]
[1688252324480,0.62553356,1922.7,1922.6,13.4260707]
[1688252326377,0.31346356,1922.7,1922.6,13.4260707]
[1688252328371,0.62552356,1922.7,1922.6,13.4260707]
[1688252338983,0.31346356,1922.7,1922.6,13.4260707]
[1688252340288,0.62552356,1922.7,1922.6,13.4260707]
[1688252346995,0.31346356,1922.7,1922.6,13.4260707]
[1688252375921,0.31346356,1922.7,1922.6,23.6190707]
[1688252376124,4.9907,1923.2,1922.6,30.90153059]
[1688252376319,4.9907,1923.2,1923.1,12.5008]
[1688252376618,4.9907,1923.2,1923.1,12.81279]
[1688252377218,4.9907,1923.2,1923.1,17.73649]
[1688252377416,5.54886398,1923.2,1923.1,17.73649]
[1688252383830,0.55816398,1923.2,1923.1,17.73649]
[1688252384030,0.87014398,1923.2,1923.1,17.73649]
[1688252388932,0.87014398,1923.2,1923.1,18.15994744]
[1688252395231,0.55816398,1923.2,1923.1,18.15994744]
[1688252399139,0.87014398,1923.2,1923.1,18.15994744]
[1688252401546,0.55816398,1923.2,1923.1,18.15994744]
[1688252405341,0.13496952,1923.2,1923.1,18.26394744]
[1688252405541,5.0626,1923.6,1923.1,23.50194744]
[1688252405749,5.0626,1923.6,1923.5,7.8898]
[1688252406050,5.0626,1923.6,1923.5,8.20173]
[1688252406552,5.0626,1923.6,1923.5,13.02803]
[1688252406940,0.00779808,1923.7,1923.5,13.02803]
[1688252407138,0.00779808,1923.7,1923.6,4.682]
[1688252407139,0.31969808,1923.7,1923.6,4.682]
[1688252407447,0.31969808,1923.7,1923.6,4.99391]